[Event "CZE-ch Amateurs 2022"]
[Site "Luhacovice"]
[Date "2022.03.13"]
[Round "2.17"]
[White "Gabriel, Adam"]
[Black "Fishchuk, Vladyslav"]
[Result "1/2-1/2"]
[ECO "D00"]
[WhiteElo "2097"]
[BlackElo "1657"]
[Annotator "ChessBase"]
[PlyCount "64"]
[EventDate "2022.03.12"]
[EventType "swiss"]
[EventCountry "CZE"]
[SourceTitle "playchess.com"]
[Source "ChessBase"]
[SourceQuality "1"]
[TimeControl "5400+30"]

1. d4 {[%emt 0:00:11]} Nf6 {[%emt 0:00:06]} 2. Bg5 {[%emt 0:01:05]} d5 {[%emt 0:00:14]} 3. Nd2 {[%emt 0:00:28]} c5 {[%emt 0:00:07]} 4. dxc5 {[%emt 0:02:28]} e6 {[%emt 0:03:48]} 5. e3 {[%emt 0:11:54]} Bxc5 {[%emt 0:00:47]} 6. Ngf3 {[%emt 0:00:11]} Nc6 {[%emt 0:06:26]} 7. a3 {[%emt 0:00:08]} h6 {[%emt 0:02:41]} 8. Bh4 {[%emt 0:00:53]} e5 {[%emt 0:06:47]} 9. b4 {[%emt 0:05:04]} Bd6 {[%emt 0:00:10]} 10. c4 {[%emt 0:00:33]} Be6 {[%emt 0:04:13]} 11. cxd5 {[%emt 0:06:30]} Bxd5 {[%emt 0:00:13]} 12. Bc4 {[%emt 0:02:51]} Bc7 {[%emt 0:11:17]} 13. Bxf6 {[%emt 0:03:57]} gxf6 {[%emt 0:00:07]} 14. Qb3 {[%emt 0:07:28]} Bxc4 {[%emt 0:00:34]} 15. Nxc4 {[%emt 0:00:09]} e4 {[%emt 0:01:42]} 16. Rd1 {[%emt 0:02:51]} Qe7 {[%emt 0:00:13]} 17. Nd4 {[%emt 0:03:50]} Nxd4 {[%emt 0:00:41]} 18. Rxd4 {[%emt 0:00:11]} Rd8 {[%emt 0:01:56]} 19. Qa4+ {[%emt 0:02:52]} Kf8 {[%emt 0:00:37]} 20. Qxa7 {[%emt 0:01:14]} Kg7 {[%emt 0:04:20]} 21. Qc5 {[%emt 0:08:57]} Qxc5 {[%emt 0:06:19]} 22. bxc5 {[%emt 0:00:07]} Rxd4 {[%emt 0:01:05]} 23. exd4 {[%emt 0:00:07]} Rd8 {[%emt 0:00:23]} 24. Ne3 {[%emt 0:00:16]} Kg6 {[%emt 0:00:47]} 25. Ke2 {[%emt 0:20:22]} Rxd4 {[%emt 0:01:30]} 26. Rb1 {[%emt 0:00:05]} Bf4 {[%emt 0:04:44]} 27. Rxb7 {[%emt 0:00:08]} Bxe3 {[%emt 0:04:02]} 28. Kxe3 {[%emt 0:01:49]} Rc4 {[%emt 0:00:07]} 29. Rb2 {[%emt 0:07:08]} f5 {[%emt 0:02:05]} 30. Kf4 {[%emt 0:02:41]} Rxc5 {[%emt 0:00:15]} 31. a4 {[%emt 0:01:12]} Ra5 {[%emt 0:00:39]} 32. Ra2 {[%emt 0:00:37]} Kf6 {[%emt 0:00:19]} 1/2-1/2

[Event "CZE-ch Amateurs 2022"]
[Site "Luhacovice"]
[Date "2022.03.13"]
[Round "2.18"]
[White "Lavrincik, Pavel"]
[Black "Cupek, Martin"]
[Result "0-1"]
[ECO "A10"]
[WhiteElo "1737"]
[BlackElo "2108"]
[Annotator "ChessBase"]
[PlyCount "56"]
[EventDate "2022.03.12"]
[EventType "swiss"]
[EventCountry "CZE"]
[SourceTitle "playchess.com"]
[Source "ChessBase"]
[SourceQuality "1"]
[TimeControl "5400+30"]

1. c4 {[%emt 0:00:11]} d6 {[%emt 0:00:11]} 2. Nc3 {[%emt 0:00:35]} a5 {[%emt 0:02:23]} 3. e4 {[%emt 0:00:37]} e5 {[%emt 0:03:33]} 4. d3 {[%emt 0:02:34]} g6 {[%emt 0:01:04]} 5. g3 {[%emt 0:00:22]} Nh6 {[%emt 0:00:20]} 6. Bg2 {[%emt 0:01:00]} Bg7 {[%emt 0:01:42]} 7. Nge2 {[%emt 0:01:10]} O-O {[%emt 0:00:09]} 8. O-O {[%emt 0:00:11]} c6 {[%emt 0:01:56]} 9. h3 {[%emt 0:01:32]} f5 {[%emt 0:00:13]} 10. f4 {[%emt 0:00:30]} Nd7 {[%emt 0:07:00]} 11. Kh2 {[%emt 0:00:31]} Nf6 {[%emt 0:00:50]} 12. d4 {[%emt 0:07:15]} Nf7 {[%emt 0:17:30]} 13. Be3 {[%emt 0:04:23]} fxe4 {[%emt 0:07:36]} 14. Nxe4 {[%emt 0:03:35]} Nxe4 {[%emt 0:00:07]} 15. Bxe4 {[%emt 0:01:17]} d5 {[%emt 0:00:51]} 16. cxd5 {[%emt 0:01:18]} cxd5 {[%emt 0:00:17]} 17. Bg2 {[%emt 0:00:57]} e4 {[%emt 0:02:20]} 18. Nc3 {[%emt 0:02:20]} Qd6 {[%emt 0:01:25]} 19. Qb3 {[%emt 0:03:46]} Rd8 {[%emt 0:09:07]} 20. Rac1 {[%emt 0:01:38]} Bd7 {[%emt 0:07:07]} 21. Nb5 {[%emt 0:17:41]} a4 {[%emt 0:07:18]} 22. Nxd6 {[%emt 0:02:58]} axb3 {[%emt 0:00:03]} 23. Nxf7 {[%emt 0:03:09]} Kxf7 {[%emt 0:00:02]} 24. axb3 {[%emt 0:00:24]} Ra6 {[%emt 0:00:40]} 25. Rc7 {[%emt 0:02:02]} Rb6 {[%emt 0:04:25]} 26. f5 {[%emt 0:03:58]} Ke8 {[%emt 0:02:45]} 27. Bg5 {[%emt 0:03:26]} Bxd4 {[%emt 0:01:44]} 28. fxg6 {[%emt 0:10:20]} hxg6 {[%emt 0:04:57]} 0-1

[Event "CZE-ch Amateurs 2022"]
[Site "Luhacovice"]
[Date "2022.03.13"]
[Round "2.19"]
[White "Urban, Zdenek"]
[Black "Bednar, Milos"]
[Result "1-0"]
[ECO "A36"]
[WhiteElo "2093"]
[BlackElo "1715"]
[Annotator "ChessBase"]
[PlyCount "70"]
[EventDate "2022.03.12"]
[EventType "swiss"]
[EventCountry "CZE"]
[SourceTitle "playchess.com"]
[Source "ChessBase"]
[SourceQuality "1"]
[TimeControl "5400+30"]

1. c4 {[%emt 0:00:04]} c5 {[%emt 0:00:10]} 2. Nc3 {[%emt 0:00:12]} Nc6 {[%emt 0:00:10]} 3. g3 {[%emt 0:00:17]} g6 {[%emt 0:00:12]} 4. Bg2 {[%emt 0:00:20]} Bg7 {[%emt 0:00:05]} 5. e4 {[%emt 0:03:00]} e5 {[%emt 0:00:49]} 6. d3 {[%emt 0:00:53]} d6 {[%emt 0:00:18]} 7. Nge2 {[%emt 0:00:34]} Bg4 {[%emt 0:01:10]} 8. f3 {[%emt 0:00:26]} Be6 {[%emt 0:00:07]} 9. O-O {[%emt 0:00:43]} Nge7 {[%emt 0:00:22]} 10. Nd5 {[%emt 0:00:52]} O-O {[%emt 0:00:59]} 11. Be3 {[%emt 0:01:39]} Nd4 {[%emt 0:03:01]} 12. Nxd4 {[%emt 0:00:41]} cxd4 {[%emt 0:01:42]} 13. Bd2 {[%emt 0:01:34]} Nxd5 {[%emt 0:01:29]} 14. cxd5 {[%emt 0:01:00]} Bd7 {[%emt 0:01:37]} 15. Qb3 {[%emt 0:01:36]} b5 {[%emt 0:04:01]} 16. Qa3 {[%emt 0:01:37]} Bc8 {[%emt 0:02:03]} 17. Ba5 {[%emt 0:01:36]} Qg5 {[%emt 0:04:17]} 18. f4 {[%emt 0:01:47]} exf4 {[%emt 0:00:42]} 19. gxf4 {[%emt 0:01:29]} Qe7 {[%emt 0:10:26]} 20. Bb4 {[%emt 0:09:01]} Rd8 {[%emt 0:13:55]} 21. e5 {[%emt 0:00:11]} Bf5 {[%emt 0:01:42]} 22. Bxd6 {[%emt 0:01:13]} Rxd6 {[%emt 0:04:48]} 23. Qxd6 {[%emt 0:01:37]} Qxd6 {[%emt 0:00:05]} 24. exd6 {[%emt 0:00:35]} Bxd3 {[%emt 0:00:41]} 25. d7 {[%emt 0:02:44]} Rd8 {[%emt 0:03:46]} 26. Rfe1 {[%emt 0:00:54]} Kf8 {[%emt 0:04:38]} 27. Rac1 {[%emt 0:00:47]} Bf5 {[%emt 0:01:16]} 28. Rc8 {[%emt 0:00:20]} Rxc8 {[%emt 0:00:03]} 29. dxc8=Q+ {[%emt 0:01:05]} Bxc8 {[%emt 0:00:05]} 30. d6 {[%emt 0:06:59]} Be6 {[%emt 0:03:25]} 31. b3 {[%emt 0:06:07]} Bf6 {[%emt 0:12:32]} 32. Bc6 {[%emt 0:07:16]} a6 {[%emt 0:02:12]} 33. Kg2 {[%emt 0:06:38]} d3 {[%emt 0:04:29]} 34. Rd1 {[%emt 0:06:58]} Bf5 {[%emt 0:01:04]} 35. Kf3 {[%emt 0:01:25]} Bc3 {[%emt 0:01:02]} 1-0

[Event "CZE-ch Amateurs 2022"]
[Site "Luhacovice"]
[Date "2022.03.13"]
[Round "2.20"]
[White "Horvath, Tomas"]
[Black "Zemkova, Klara"]
[Result "1/2-1/2"]
[ECO "C32"]
[WhiteElo "2079"]
[BlackElo "1724"]
[Annotator "ChessBase"]
[PlyCount "57"]
[EventDate "2022.03.12"]
[EventType "swiss"]
[EventCountry "CZE"]
[SourceTitle "playchess.com"]
[Source "ChessBase"]
[SourceQuality "1"]
[TimeControl "5400+30"]

1. e4 {[%emt 0:00:04]} e5 {[%emt 0:00:35]} 2. f4 {[%emt 0:00:06]} d5 {[%emt 0:03:19]} 3. exd5 {[%emt 0:00:07]} e4 {[%emt 0:00:30]} 4. d3 {[%emt 0:00:37]} Nf6 {[%emt 0:07:00]} 5. dxe4 {[%emt 0:01:26]} Nxe4 {[%emt 0:00:26]} 6. Nf3 {[%emt 0:00:22]} Bc5 {[%emt 0:01:56]} 7. Qe2 {[%emt 0:01:09]} Qe7 {[%emt 0:08:43]} 8. Be3 {[%emt 0:05:08]} Nd7 {[%emt 0:04:40]} 9. Bxc5 {[%emt 0:03:06]} Ndxc5 {[%emt 0:00:08]} 10. Nbd2 {[%emt 0:00:53]} Bf5 {[%emt 0:02:24]} 11. O-O-O {[%emt 0:04:50]} O-O-O {[%emt 0:00:55]} 12. Nxe4 {[%emt 0:09:42]} Nxe4 {[%emt 0:01:40]} 13. Qe3 {[%emt 0:00:42]} Kb8 {[%emt 0:00:59]} 14. Bc4 {[%emt 0:01:36]} Rhe8 {[%emt 0:00:57]} 15. Rhe1 {[%emt 0:02:27]} Qb4 {[%emt 0:01:32]} 16. Qb3 {[%emt 0:01:58]} Qd6 {[%emt 0:06:47]} 17. Ne5 {[%emt 0:05:51]} Nc5 {[%emt 0:04:55]} 18. Qf3 {[%emt 0:01:25]} Re7 {[%emt 0:03:48]} 19. g4 {[%emt 0:03:01]} f6 {[%emt 0:06:26]} 20. Nc6+ {[%emt 0:03:52]} bxc6 {[%emt 0:00:38]} 21. Rxe7 {[%emt 0:01:17]} Bxg4 {[%emt 0:01:13]} 22. Qxg4 {[%emt 0:00:49]} Qxe7 {[%emt 0:00:12]} 23. dxc6 {[%emt 0:01:39]} Rd6 {[%emt 0:04:26]} 24. Rxd6 {[%emt 0:02:19]} cxd6 {[%emt 0:00:26]} 25. Be2 {[%emt 0:27:54]} Qe3+ {[%emt 0:01:57]} 26. Kb1 {[%emt 0:00:39]} f5 {[%emt 0:01:03]} 27. Qg2 {[%emt 0:04:55]} g6 {[%emt 0:01:34]} 28. a3 {[%emt 0:01:18]} Qxf4 {[%emt 0:02:16]} 29. Qd5 {[%emt 0:00:56]} 1/2-1/2

[Event "CZE-ch Amateurs 2022"]
[Site "Luhacovice"]
[Date "2022.03.14"]
[Round "3.1"]
[White "Taus, Martin"]
[Black "Jedlicka, Ales"]
[Result "0-1"]
[ECO "E03"]
[WhiteElo "2017"]
[BlackElo "2223"]
[Annotator "ChessBase"]
[PlyCount "29"]
[EventDate "2022.03.12"]
[EventType "swiss"]
[EventCountry "CZE"]
[SourceTitle "playchess.com"]
[Source "ChessBase"]
[SourceQuality "1"]
[TimeControl "5400+30"]

1. Nf3 {[%emt 0:00:12]} d5 {[%emt 0:00:40]} 2. c4 {[%emt 0:00:42]} e6 {[%emt 0:00:25]} 3. g3 {[%emt 0:01:20]} Nf6 {[%emt 0:00:16]} 4. Bg2 {[%emt 0:00:12]} dxc4 {[%emt 0:00:23]} 5. Qa4+ {[%emt 0:01:16]} Nbd7 {[%emt 0:00:42]} 6. Qxc4 {[%emt 0:00:06]} a6 {[%emt 0:00:33]} 7. d4 {[%emt 0:02:18]} b5 {[%emt 0:01:00]} 8. Qc2 {[%emt 0:02:55]} Bb7 {[%emt 0:00:27]} 9. O-O {[%emt 0:00:06]} c5 {[%emt 0:01:49]} 10. Rd1 {[%emt 0:06:01]} Rc8 {[%emt 0:00:24]} 11. Qd3 {[%emt 0:03:39]} c4 {[%emt 0:03:22]} 12. Qd2 {[%emt 0:01:01]} Bd6 {[%emt 0:00:41]} 13. Nc3 {[%emt 0:01:43]} b4 {[%emt 0:01:36]} 14. Na4 {[%emt 0:00:12]} Qa5 {[%emt 0:00:28]} 15. Nc5 {[%emt 0:00:48]} 0-1

[Event "CZE-ch Amateurs 2022"]
[Site "Luhacovice"]
[Date "2022.03.14"]
[Round "3.2"]
[White "Jun, Rudolf"]
[Black "Bokhnak, Timofey"]
[Result "1/2-1/2"]
[ECO "A13"]
[WhiteElo "2215"]
[BlackElo "1978"]
[Annotator "ChessBase"]
[PlyCount "79"]
[EventDate "2022.03.12"]
[EventType "swiss"]
[EventCountry "CZE"]
[SourceTitle "playchess.com"]
[Source "ChessBase"]
[SourceQuality "1"]
[TimeControl "5400+30"]

1. b3 {[%emt 0:00:08]} d5 {[%emt 0:00:49]} 2. Bb2 {[%emt 0:01:21]} Nf6 {[%emt 0:00:47]} 3. e3 {[%emt 0:00:18]} e6 {[%emt 0:00:17]} 4. Nf3 {[%emt 0:00:44]} c5 {[%emt 0:00:27]} 5. c4 {[%emt 0:00:30]} b6 {[%emt 0:00:22]} 6. Nc3 {[%emt 0:03:32]} dxc4 {[%emt 0:02:52]} 7. bxc4 {[%emt 0:03:41]} Bb7 {[%emt 0:00:07]} 8. d4 {[%emt 0:04:38]} cxd4 {[%emt 0:01:32]} 9. exd4 {[%emt 0:00:28]} Bb4 {[%emt 0:04:39]} 10. Be2 {[%emt 0:05:59]} Ne4 {[%emt 0:03:32]} 11. Rc1 {[%emt 0:01:52]} O-O {[%emt 0:01:36]} 12. O-O {[%emt 0:00:15]} Nxc3 {[%emt 0:00:07]} 13. Bxc3 {[%emt 0:00:07]} Bxc3 {[%emt 0:00:04]} 14. Rxc3 {[%emt 0:00:05]} Qf6 {[%emt 0:00:19]} 15. Ne5 {[%emt 0:01:37]} Rd8 {[%emt 0:04:11]} 16. Bf3 {[%emt 0:01:46]} Qe7 {[%emt 0:01:07]} 17. Bxb7 {[%emt 0:03:54]} Qxb7 {[%emt 0:00:07]} 18. Qg4 {[%emt 0:01:29]} Nc6 {[%emt 0:04:25]} 19. Rg3 {[%emt 0:10:51]} g6 {[%emt 0:06:28]} 20. Qf3 {[%emt 0:08:03]} Rac8 {[%emt 0:03:47]} 21. Ng4 {[%emt 0:01:36]} f5 {[%emt 0:03:51]} 22. Nf6+ {[%emt 0:01:29]} Kg7 {[%emt 0:08:08]} 23. Nh5+ {[%emt 0:00:09]} Kf7 {[%emt 0:04:34]} 24. d5 {[%emt 0:00:12]} exd5 {[%emt 0:01:30]} 25. Qf4 {[%emt 0:08:03]} Qe7 {[%emt 0:07:37]} 26. Qh6 {[%emt 0:18:55]} Kg8 {[%emt 0:00:08]} 27. Nf4 {[%emt 0:02:01]} Nd4 {[%emt 0:00:10]} 28. Kh1 {[%emt 0:03:16]} Rd6 {[%emt 0:09:04]} 29. Nxd5 {[%emt 0:04:06]} Qf7 {[%emt 0:06:07]} 30. Re3 {[%emt 0:03:02]} Re6 {[%emt 0:03:38]} 31. Rxe6 {[%emt 0:02:16]} Nxe6 {[%emt 0:02:43]} 32. Qc1 {[%emt 0:02:44]} b5 {[%emt 0:02:41]} 33. Re1 {[%emt 0:02:17]} Rxc4 {[%emt 0:04:06]} 34. Qb2 {[%emt 0:00:42]} Re4 {[%emt 0:07:16]} 35. Rxe4 {[%emt 0:01:39]} fxe4 {[%emt 0:00:01]} 36. Nf6+ {[%emt 0:00:16]} Kf8 {[%emt 0:00:48]} 37. Nxe4 {[%emt 0:00:06]} Qg7 {[%emt 0:00:25]} 38. Qc1 {[%emt 0:01:10]} Qe5 {[%emt 0:00:30]} 39. f3 {[%emt 0:00:51]} Kg7 {[%emt 0:00:55]} 40. h3 {[%emt 0:01:00]} 1/2-1/2

[Event "CZE-ch Amateurs 2022"]
[Site "Luhacovice"]
[Date "2022.03.14"]
[Round "3.3"]
[White "Hurtak, Otto"]
[Black "Kratochvil, Josef"]
[Result "0-1"]
[ECO "B22"]
[WhiteElo "1972"]
[BlackElo "2200"]
[Annotator "ChessBase"]
[PlyCount "109"]
[EventDate "2022.03.12"]
[EventType "swiss"]
[EventCountry "CZE"]
[SourceTitle "playchess.com"]
[Source "ChessBase"]
[SourceQuality "1"]
[TimeControl "5400+30"]

1. e4 {[%emt 0:00:11]} c5 {[%emt 0:00:15]} 2. d4 {[%emt 0:00:18]} cxd4 {[%emt 0:01:04]} 3. c3 {[%emt 0:00:08]} d6 {[%emt 0:00:08]} 4. cxd4 {[%emt 0:00:32]} Nf6 {[%emt 0:00:04]} 5. Nc3 {[%emt 0:00:41]} g6 {[%emt 0:00:11]} 6. Nf3 {[%emt 0:03:17]} Bg7 {[%emt 0:02:25]} 7. Be2 {[%emt 0:00:11]} O-O {[%emt 0:00:08]} 8. O-O {[%emt 0:00:07]} Nc6 {[%emt 0:02:00]} 9. h3 {[%emt 0:02:17]} d5 {[%emt 0:03:31]} 10. exd5 {[%emt 0:07:03]} Nb4 {[%emt 0:03:22]} 11. Qb3 {[%emt 0:02:49]} Nbxd5 {[%emt 0:00:58]} 12. Re1 {[%emt 0:02:33]} b6 {[%emt 0:04:15]} 13. Ne5 {[%emt 0:07:57]} Nxc3 {[%emt 0:06:50]} 14. bxc3 {[%emt 0:01:06]} Bb7 {[%emt 0:00:15]} 15. Bf3 {[%emt 0:04:15]} Bxf3 {[%emt 0:03:50]} 16. Nxf3 {[%emt 0:01:02]} Rc8 {[%emt 0:01:05]} 17. Ba3 {[%emt 0:03:31]} Re8 {[%emt 0:01:35]} 18. Rad1 {[%emt 0:04:50]} e6 {[%emt 0:06:29]} 19. c4 {[%emt 0:01:54]} Qc7 {[%emt 0:03:12]} 20. c5 {[%emt 0:05:41]} Nd5 {[%emt 0:03:34]} 21. Rc1 {[%emt 0:03:42]} Qb7 {[%emt 0:08:49]} 22. Ne5 {[%emt 0:05:54]} b5 {[%emt 0:03:30]} 23. Bb2 {[%emt 0:10:17]} Red8 {[%emt 0:08:06]} 24. Qf3 {[%emt 0:03:19]} Qe7 {[%emt 0:05:24]} 25. Rcd1 {[%emt 0:03:00]} a5 {[%emt 0:05:32]} 26. Bc1 {[%emt 0:02:09]} b4 {[%emt 0:02:52]} 27. Nc4 {[%emt 0:03:31]} Nc3 {[%emt 0:05:11]} 28. Nd6 {[%emt 0:02:01]} Rxd6 {[%emt 0:01:31]} 29. cxd6 {[%emt 0:00:19]} Qxd6 {[%emt 0:00:07]} 30. Bf4 {[%emt 0:01:33]} Qb6 {[%emt 0:01:59]} 31. Rc1 {[%emt 0:04:38]} Bxd4 {[%emt 0:02:49]} 32. Be3 {[%emt 0:00:23]} Bxe3 {[%emt 0:00:40]} 33. fxe3 {[%emt 0:02:56]} Rc5 {[%emt 0:04:18]} 34. Rc2 {[%emt 0:03:20]} Kg7 {[%emt 0:01:32]} 35. g4 {[%emt 0:01:19]} Qc6 {[%emt 0:04:06]} 36. Qxc6 {[%emt 0:00:41]} Rxc6 {[%emt 0:00:03]} 37. Kg2 {[%emt 0:00:35]} a4 {[%emt 0:01:51]} 38. Rec1 {[%emt 0:01:00]} a3 {[%emt 0:01:46]} 39. Rf1 {[%emt 0:02:00]} e5 {[%emt 0:01:43]} 40. e4 {[%emt 0:01:05]} Rd6 {[%emt 0:01:17]} 41. Rf3 {[%emt 0:01:53]} f6 {[%emt 0:01:41]} 42. Re3 {[%emt 0:00:55]} Rd1 {[%emt 0:00:41]} 43. h4 {[%emt 0:02:08]} h5 {[%emt 0:00:15]} 44. gxh5 {[%emt 0:00:27]} gxh5 {[%emt 0:00:04]} 45. Kg3 {[%emt 0:01:23]} Ra1 {[%emt 0:00:31]} 46. Kh3 {[%emt 0:01:48]} Kf7 {[%emt 0:00:14]} 47. Rd2 {[%emt 0:00:27]} Rxa2 {[%emt 0:00:38]} 48. Rd7+ {[%emt 0:00:25]} Ke6 {[%emt 0:00:29]} 49. Rb7 {[%emt 0:00:08]} Rb2 {[%emt 0:00:32]} 50. Rd3 {[%emt 0:00:51]} Nxe4 {[%emt 0:00:40]} 51. Re7+ {[%emt 0:00:58]} Kxe7 {[%emt 0:01:16]} 52. Rd7+ {[%emt 0:00:05]} Ke6 {[%emt 0:00:06]} 53. Re7+ {[%emt 0:00:04]} Kd5 {[%emt 0:00:45]} 54. Rxe5+ {[%emt 0:00:19]} Kc4 {[%emt 0:00:26]} 55. Rc5+ {[%emt 0:00:16]} 0-1

[Event "CZE-ch Amateurs 2022"]
[Site "Luhacovice"]
[Date "2022.03.14"]
[Round "3.4"]
[White "Mudrak, Josef"]
[Black "Jiruse, Josef"]
[Result "1-0"]
[ECO "E18"]
[WhiteElo "2219"]
[BlackElo "1957"]
[Annotator "ChessBase"]
[PlyCount "49"]
[EventDate "2022.03.12"]
[EventType "swiss"]
[EventCountry "CZE"]
[SourceTitle "playchess.com"]
[Source "ChessBase"]
[SourceQuality "1"]
[TimeControl "5400+30"]

1. d4 {[%emt 0:00:09]} Nf6 {[%emt 0:00:06]} 2. Nf3 {[%emt 0:00:08]} e6 {[%emt 0:00:13]} 3. c4 {[%emt 0:00:24]} d5 {[%emt 0:00:15]} 4. g3 {[%emt 0:00:34]} Be7 {[%emt 0:00:37]} 5. Bg2 {[%emt 0:00:19]} O-O {[%emt 0:00:06]} 6. O-O {[%emt 0:00:16]} b6 {[%emt 0:03:02]} 7. cxd5 {[%emt 0:02:10]} exd5 {[%emt 0:00:31]} 8. Nc3 {[%emt 0:00:30]} Bb7 {[%emt 0:00:18]} 9. Bf4 {[%emt 0:01:12]} Nbd7 {[%emt 0:19:32]} 10. Rc1 {[%emt 0:01:51]} c5 {[%emt 0:01:12]} 11. dxc5 {[%emt 0:01:41]} bxc5 {[%emt 0:03:09]} 12. Nh4 {[%emt 0:02:07]} Nh5 {[%emt 0:11:41]} 13. Nf5 {[%emt 0:02:38]} Nxf4 {[%emt 0:00:15]} 14. gxf4 {[%emt 0:00:29]} Nb6 {[%emt 0:00:24]} 15. Nxd5 {[%emt 0:01:00]} Bxd5 {[%emt 0:00:36]} 16. Bxd5 {[%emt 0:00:34]} Nxd5 {[%emt 0:00:46]} 17. Qxd5 {[%emt 0:00:14]} Bf6 {[%emt 0:09:49]} 18. Qxd8 {[%emt 0:00:12]} Rfxd8 {[%emt 0:00:10]} 19. Rc2 {[%emt 0:00:08]} g6 {[%emt 0:01:15]} 20. Ng3 {[%emt 0:00:20]} Rd4 {[%emt 0:05:37]} 21. Rxc5 {[%emt 0:10:48]} Rxf4 {[%emt 0:05:45]} 22. b3 {[%emt 0:01:01]} h5 {[%emt 0:00:05]} 23. Rfc1 {[%emt 0:02:30]} h4 {[%emt 0:01:43]} 24. e3 {[%emt 0:09:29]} Rb4 {[%emt 0:04:11]} 25. Ne2 {[%emt 0:01:14]} 1-0

[Event "CZE-ch Amateurs 2022"]
[Site "Luhacovice"]
[Date "2022.03.14"]
[Round "3.5"]
[White "Zvolensky, David"]
[Black "Matejovsky, Ondrej"]
[Result "1-0"]
[ECO "E17"]
[WhiteElo "2159"]
[BlackElo "1939"]
[Annotator "ChessBase"]
[PlyCount "69"]
[EventDate "2022.03.12"]
[EventType "swiss"]
[EventCountry "CZE"]
[SourceTitle "playchess.com"]
[Source "ChessBase"]
[SourceQuality "1"]
[TimeControl "5400+30"]

1. d4 {[%emt 0:00:05]} d5 {[%emt 0:00:12]} 2. c4 {[%emt 0:00:06]} e6 {[%emt 0:00:07]} 3. Nf3 {[%emt 0:00:05]} Nf6 {[%emt 0:00:09]} 4. g3 {[%emt 0:00:04]} Be7 {[%emt 0:00:42]} 5. Bg2 {[%emt 0:00:08]} O-O {[%emt 0:00:21]} 6. O-O {[%emt 0:00:04]} b6 {[%emt 0:04:21]} 7. cxd5 {[%emt 0:00:16]} exd5 {[%emt 0:00:21]} 8. Qc2 {[%emt 0:03:00]} Bb7 {[%emt 0:03:18]} 9. Ne5 {[%emt 0:02:50]} c5 {[%emt 0:06:22]} 10. Be3 {[%emt 0:04:06]} Nbd7 {[%emt 0:06:01]} 11. Nxd7 {[%emt 0:00:18]} Nxd7 {[%emt 0:01:33]} 12. Rd1 {[%emt 0:00:13]} c4 {[%emt 0:09:59]} 13. b3 {[%emt 0:02:08]} Rc8 {[%emt 0:03:10]} 14. Nc3 {[%emt 0:05:07]} Nf6 {[%emt 0:09:36]} 15. Bg5 {[%emt 0:07:13]} Qd7 {[%emt 0:06:50]} 16. a4 {[%emt 0:15:40]} h6 {[%emt 0:13:04]} 17. Bxf6 {[%emt 0:00:14]} Bxf6 {[%emt 0:00:07]} 18. e3 {[%emt 0:00:05]} Be7 {[%emt 0:02:28]} 19. Rdc1 {[%emt 0:03:52]} Bb4 {[%emt 0:04:03]} 20. Ne2 {[%emt 0:00:07]} a5 {[%emt 0:00:43]} 21. Qa2 {[%emt 0:02:55]} Ba6 {[%emt 0:01:14]} 22. Nf4 {[%emt 0:01:04]} cxb3 {[%emt 0:01:45]} 23. Qxb3 {[%emt 0:00:30]} Rxc1+ {[%emt 0:01:19]} 24. Rxc1 {[%emt 0:00:01]} Bc4 {[%emt 0:00:10]} 25. Qd1 {[%emt 0:00:00]} b5 {[%emt 0:03:20]} 26. axb5 {[%emt 0:01:05]} Qxb5 {[%emt 0:00:15]} 27. Qh5 {[%emt 0:00:07]} g5 {[%emt 0:04:24]} 28. Rxc4 {[%emt 0:15:28]} dxc4 {[%emt 0:08:40]} 29. Be4 {[%emt 0:00:55]} Qb6 {[%emt 0:03:48]} 30. Nd5 {[%emt 0:01:52]} Qe6 {[%emt 0:00:27]} 31. h4 {[%emt 0:01:00]} f5 {[%emt 0:03:43]} 32. Nc7 {[%emt 0:01:23]} Qxe4 {[%emt 0:03:19]} 33. Qg6+ {[%emt 0:00:06]} Kh8 {[%emt 0:00:06]} 34. Qxh6+ {[%emt 0:00:04]} Kg8 {[%emt 0:00:03]} 35. Ne6 {[%emt 0:00:44]} 1-0

[Event "CZE-ch Amateurs 2022"]
[Site "Luhacovice"]
[Date "2022.03.14"]
[Round "3.6"]
[White "Stastny, Jakub"]
[Black "Lorenc, Tomas"]
[Result "0-1"]
[ECO "A57"]
[WhiteElo "1945"]
[BlackElo "2183"]
[Annotator "ChessBase"]
[PlyCount "76"]
[EventDate "2022.03.12"]
[EventType "swiss"]
[EventCountry "CZE"]
[SourceTitle "playchess.com"]
[Source "ChessBase"]
[SourceQuality "1"]
[TimeControl "5400+30"]

1. d4 {[%emt 0:00:05]} Nf6 {[%emt 0:00:30]} 2. c4 {[%emt 0:00:30]} c5 {[%emt 0:00:07]} 3. d5 {[%emt 0:00:00]} b5 {[%emt 0:00:04]} 4. cxb5 {[%emt 0:00:00]} a6 {[%emt 0:00:04]} 5. b6 {[%emt 0:00:00]} e6 {[%emt 0:02:00]} 6. Nc3 {[%emt 0:00:03]} Nxd5 {[%emt 0:00:07]} 7. Nxd5 {[%emt 0:00:01]} exd5 {[%emt 0:00:09]} 8. Qxd5 {[%emt 0:00:03]} Nc6 {[%emt 0:00:06]} 9. Nf3 {[%emt 0:00:03]} Be7 {[%emt 0:00:14]} 10. Ne5 {[%emt 0:07:04]} O-O {[%emt 0:00:09]} 11. Nxc6 {[%emt 0:00:03]} dxc6 {[%emt 0:00:05]} 12. Qxc6 {[%emt 0:00:04]} Rb8 {[%emt 0:04:54]} 13. Qc7 {[%emt 0:03:26]} Rxb6 {[%emt 0:00:30]} 14. Qxd8 {[%emt 0:00:02]} Rxd8 {[%emt 0:00:56]} 15. e4 {[%emt 0:14:41]} Rb4 {[%emt 0:13:16]} 16. f3 {[%emt 0:02:40]} Bf6 {[%emt 0:01:52]} 17. Rb1 {[%emt 0:27:20]} Bc3+ {[%emt 0:16:31]} 18. Kf2 {[%emt 0:05:14]} Rd1 {[%emt 0:09:22]} 19. g3 {[%emt 0:09:59]} Be6 {[%emt 0:19:53]} 20. Bg2 {[%emt 0:06:50]} Rxh1 {[%emt 0:02:33]} 21. Bxh1 {[%emt 0:00:31]} Bxa2 {[%emt 0:00:52]} 22. Ra1 {[%emt 0:00:00]} Bd4+ {[%emt 0:04:13]} 23. Ke1 {[%emt 0:00:56]} Bc4 {[%emt 0:00:14]} 24. Bg2 {[%emt 0:03:03]} Bxb2 {[%emt 0:03:49]} 25. Bxb2 {[%emt 0:00:56]} Rxb2 {[%emt 0:00:05]} 26. Bf1 {[%emt 0:00:01]} Bxf1 {[%emt 0:00:42]} 27. Kxf1 {[%emt 0:00:01]} Rxh2 {[%emt 0:00:30]} 28. Rxa6 {[%emt 0:00:02]} g6 {[%emt 0:00:20]} 29. Rc6 {[%emt 0:03:52]} Rc2 {[%emt 0:00:09]} 30. e5 {[%emt 0:13:02]} Kf8 {[%emt 0:04:33]} 31. e6 {[%emt 0:01:03]} fxe6 {[%emt 0:00:41]} 32. Rxe6 {[%emt 0:00:02]} Kf7 {[%emt 0:00:11]} 33. Rc6 {[%emt 0:01:59]} h5 {[%emt 0:00:08]} 34. f4 {[%emt 0:01:35]} c4 {[%emt 0:00:15]} 35. Kg1 {[%emt 0:00:30]} c3 {[%emt 0:00:11]} 36. Kh1 {[%emt 0:00:00]} Ke7 {[%emt 0:00:30]} 37. Rxg6 {[%emt 0:01:31]} Rd2 {[%emt 0:00:15]} 38. Rc6 {[%emt 0:01:43]} c2 {[%emt 0:00:07]} 0-1